[Event "FIN-ch Seniors 50 2020"]
[Site "Helsinki"]
[Date "2020.09.27"]
[Round "6.3"]
[White "Vainikainen, Tommi"]
[Black "Salimaki, Janne"]
[Result "0-1"]
[ECO "B22"]
[WhiteElo "1850"]
[BlackElo "2092"]
[Annotator "ChessBase"]
[PlyCount "76"]
[EventDate "2020.09.24"]
[EventType "tourn"]
[EventCountry "FIN"]
[SourceTitle "playchess.com"]
[Source "ChessBase"]
[SourceQuality "1"]
[TimeControl "40/5400+30:1800+30"]

1. e4 {[%emt 0:00:00]} c5 {[%emt 0:00:00]} 2. c3 {[%emt 0:00:00]} Nf6 {[%emt 0:00:00]} 3. e5 {[%emt 0:00:00]} Nd5 {[%emt 0:00:05]} 4. d4 {[%emt 0:00:16]} cxd4 {[%emt 0:00:15]} 5. cxd4 {[%emt 0:00:24]} e6 {[%emt 0:00:26]} 6. Nf3 {[%emt 0:00:17]} d6 {[%emt 0:00:32]} 7. Bc4 {[%emt 0:02:47]} Nb6 {[%emt 0:00:23]} 8. Bb3 {[%emt 0:00:31]} dxe5 {[%emt 0:00:29]} 9. dxe5 {[%emt 0:00:29]} Qxd1+ {[%emt 0:01:43]} 10. Kxd1 {[%emt 0:01:23]} Nc6 {[%emt 0:01:55]} 11. Nc3 {[%emt 0:00:19]} a6 {[%emt 0:04:24]} 12. Bf4 {[%emt 0:05:17]} Nd7 {[%emt 0:02:20]} 13. Ke2 {[%emt 0:18:19]} Be7 {[%emt 0:02:18]} 14. Rac1 {[%emt 0:01:30]} h6 {[%emt 0:10:10]} 15. h4 {[%emt 0:02:33]} Nc5 {[%emt 0:06:52]} 16. Bc2 {[%emt 0:03:25]} b6 {[%emt 0:04:14]} 17. a3 {[%emt 0:02:30]} a5 {[%emt 0:00:46]} 18. Ne4 {[%emt 0:19:26]} Ba6+ {[%emt 0:10:17]} 19. Ke3 {[%emt 0:05:26]} O-O {[%emt 0:05:52]} 20. Rhd1 {[%emt 0:09:52]} Rfd8 {[%emt 0:03:17]} 21. Ne1 {[%emt 0:06:16]} Bf8 {[%emt 0:09:37]} 22. Nd3 {[%emt 0:01:25]} Nxe4 {[%emt 0:01:57]} 23. Kxe4 {[%emt 0:00:12]} Bb7 {[%emt 0:03:04]} 24. Ke3 {[%emt 0:00:40]} Nd4 {[%emt 0:00:24]} 25. f3 {[%emt 0:01:10]} Rac8 {[%emt 0:02:28]} 26. Bb1 {[%emt 0:01:05]} Nf5+ {[%emt 0:02:32]} 27. Kf2 {[%emt 0:00:53]} Nxh4 {[%emt 0:00:39]} 28. Be3 {[%emt 0:00:36]} Rxc1 {[%emt 0:05:46]} 29. Rxc1 {[%emt 0:00:11]} Ba6 {[%emt 0:00:26]} 30. Bxb6 {[%emt 0:02:44]} Rd5 {[%emt 0:04:02]} 31. Rc3 {[%emt 0:03:18]} Ng6 {[%emt 0:03:41]} 32. g3 {[%emt 0:02:27]} Nxe5 {[%emt 0:01:46]} 33. Nxe5 {[%emt 0:00:52]} Rxe5 {[%emt 0:00:15]} 34. Be4 {[%emt 0:00:21]} Rb5 {[%emt 0:01:44]} 35. Bd4 {[%emt 0:01:22]} Rxb2+ {[%emt 0:00:18]} 36. Ke3 {[%emt 0:00:47]} Re2+ {[%emt 0:00:53]} 37. Kf4 {[%emt 0:00:10]} g5+ {[%emt 0:00:15]} 38. Ke5 {[%emt 0:00:03]} Bg7+ {[%emt 0:00:15]} 0-1

[Event "FIN-ch Seniors 50 2020"]
[Site "Helsinki"]
[Date "2020.09.27"]
[Round "6.4"]
[White "Salmenkivi, Eero"]
[Black "Salmi, Ilkka"]
[Result "1-0"]
[ECO "C54"]
[WhiteElo "2053"]
[BlackElo "1870"]
[Annotator "ChessBase"]
[PlyCount "31"]
[EventDate "2020.09.24"]
[EventType "tourn"]
[EventCountry "FIN"]
[SourceTitle "playchess.com"]
[Source "ChessBase"]
[SourceQuality "1"]
[TimeControl "40/5400+30:1800+30"]

1. e4 {[%emt 1:30:30]} e5 {[%emt 1:30:30]} 2. Nf3 {[%emt 0:00:30]} Nc6 {[%emt 0:00:30]} 3. Bc4 {[%emt 0:00:30]} Bc5 {[%emt 0:00:30]} 4. c3 {[%emt 0:00:30]} Nf6 {[%emt 0:00:30]} 5. d4 {[%emt 0:00:30]} exd4 {[%emt 0:00:30]} 6. e5 {[%emt 0:00:30]} Qe7 {[%emt 0:00:30]} 7. O-O {[%emt 0:00:30]} Nxe5 {[%emt 0:00:30]} 8. Re1 {[%emt 0:00:30]} d6 {[%emt 0:00:30]} 9. cxd4 {[%emt 0:00:30]} Bb4 {[%emt 0:00:30]} 10. dxe5 {[%emt 0:00:30]} Bxe1 {[%emt 0:00:30]} 11. exf6 {[%emt 0:00:30]} Bxf2+ {[%emt 0:00:30]} 12. Kxf2 {[%emt 0:00:30]} Qxf6 {[%emt 0:00:30]} 13. Nc3 {[%emt 0:00:30]} O-O {[%emt 0:00:30]} 14. Nd5 {[%emt 0:00:30]} Qd8 {[%emt 0:00:30]} 15. Bg5 {[%emt 0:00:30]} Qd7 {[%emt 0:00:30]} 16. Qd4 {[%emt 0:00:30]} 1-0

[Event "FIN-ch Seniors 50 2020"]
[Site "Helsinki"]
[Date "2020.09.27"]
[Round "7.4"]
[White "Piho, Juha"]
[Black "Hamalainen, Sami"]
[Result "1/2-1/2"]
[ECO "C19"]
[WhiteElo "1915"]
[BlackElo "2182"]
[Annotator "ChessBase"]
[PlyCount "34"]
[EventDate "2020.09.24"]
[EventType "tourn"]
[EventCountry "FIN"]
[SourceTitle "playchess.com"]
[Source "ChessBase"]
[SourceQuality "1"]
[TimeControl "40/5400+30:1800+30"]

1. e4 {[%emt 1:30:30]} e6 {[%emt 1:30:30]} 2. d4 {[%emt 0:00:30]} d5 {[%emt 0:00:30]} 3. Nc3 {[%emt 0:00:30]} Bb4 {[%emt 0:00:30]} 4. e5 {[%emt 0:00:30]} c5 {[%emt 0:00:30]} 5. a3 {[%emt 0:00:30]} Bxc3+ {[%emt 0:00:30]} 6. bxc3 {[%emt 0:00:30]} Qc7 {[%emt 0:00:30]} 7. Nf3 {[%emt 0:00:30]} b6 {[%emt 0:00:30]} 8. Bd3 {[%emt 0:00:30]} Ba6 {[%emt 0:00:30]} 9. O-O {[%emt 0:00:30]} Ne7 {[%emt 0:00:30]} 10. Bxa6 {[%emt 0:00:30]} Nxa6 {[%emt 0:00:30]} 11. Qe2 {[%emt 0:00:30]} Nb8 {[%emt 0:00:30]} 12. a4 {[%emt 0:00:30]} Nd7 {[%emt 0:00:30]} 13. Ng5 {[%emt 0:00:30]} h6 {[%emt 0:00:30]} 14. Qh5 {[%emt 0:00:30]} g6 {[%emt 0:00:30]} 15. Qh3 {[%emt 0:00:30]} cxd4 {[%emt 0:00:30]} 16. cxd4 {[%emt 0:00:30]} Nf5 {[%emt 0:00:30]} 17. c3 {[%emt 0:00:30]} Rg8 {[%emt 0:00:30]} 1/2-1/2